Cogmind - Beta 14 X2 @@@ ROGUE MODE // 2024.07.28 @ 11:59:18 Player: tourn Result: Destroyed by 9G-EPC(R) with Subdweller Machine Gun Performance ------------- Evolutions (0) 0 Regions Visited (2) 400 Robots Destroyed (21) 105 Value Destroyed (724) 724 Prototype IDs (11) 220 Alien Tech Used (0) 0 Bonus (0) 0 TOTAL SCORE: 1449 Bonus ------- None Cogmind --------- Core Integrity 0/250 Matter 146/300 Energy 158/160 System Corruption 0% Temperature Cool (0) Movement Treading (160) Location -10/Subcaves Parts ------- > --- POWER (1) -------- Light Nuclear Core > --- PROPULSION (2) --- Light Treads Light Treads > --- UTILITY (2) ------ Large Storage Unit Structural Scanner > --- WEAPON (2) ------- Light Assault Rifle Heavy Assault Rifle > --- INVENTORY (15) --- Ion Engine Armored Wheel Armored Wheel Armored Wheel Subdweller Monowheel Subdweller Monowheel Heat Sink Subdweller Laser Subdweller Beam Cannon Light Assault Rifle Battle Rifle Light Cannon Rocket Launcher Shrapnel Trap Peak State ------------ > --- POWER ------------ Light Nuclear Core > --- PROPULSION ------- Light Treads Armored Wheel Armored Wheel > --- UTILITY ---------- Heat Sink Large Storage Unit Tower Shield > --- WEAPON ----------- Heavy Assault Rifle Battle Rifle Subdweller Machine Gun > --- INVENTORY -------- Ion Engine Light Treads Light Treads Armored Wheel Subdweller Monowheel Structural Scanner Subdweller Laser Subdweller Beam Cannon Light Assault Rifle Light Assault Rifle Light Cannon Rocket Launcher Shrapnel Trap Shrapnel Trap [Rating: 37] Favorites ----------- Power Light Ion Engine Engine Light Ion Engine Power Core Light Nuclear Core Propulsion Armored Wheel Treads Light Treads Leg Aluminum Leg Wheel Armored Wheel Utility Large Storage Unit Device Structural Scanner Storage Large Storage Unit Protection Tower Shield Weapon Subdweller Machine Gun Energy Gun Subdweller Laser Ballistic Gun Subdweller Machine Gun Launcher Rocket Launcher Build | -11 -10 -10 ------- Run | Yrd Mat Sub Slots Evolved . | . . . Power . | . . . Propulsion . | . . . Utility . | . . . Weapon . | . . . Parts Attached 48 | . 18 30 Power 4 | . 1 3 Engine 3 | . 1 2 Core 1 | . . 1 Reactor . | . . . Propulsion 10 | . 4 6 Treads 3 | . . 3 Leg 2 | . 2 . Wheel 5 | . 2 3 Hover . | . . . Flight . | . . . Utility 8 | . 3 5 Device 3 | . 1 2 Storage 4 | . 2 2 Processor . | . . . Hackware . | . . . Protection 1 | . . 1 Artifact . | . . . Weapon 26 | . 10 16 Energy Gun 3 | . 2 1 Energy Cannon . | . . . Ballistic Gun 16 | . 6 10 Ballistic Cannon . | . . . Launcher 7 | . 2 5 Special Weapon . | . . . Impact Weapon . | . . . Slashing Weapon . | . . . Piercing Weapon . | . . . Special Melee Weapon . | . . . Unidentified Prototypes . | . . . Parts Lost 4 | . 1 3 Power . | . . . Propulsion . | . . . Utility 1 | . . 1 Weapon 3 | . 1 2 Highest Loss Streak 2 | . 1 2 To Critical Strikes . | . . . Average Slot Usage (%) 79 | . 97 75 Engine 7 | . 13 5 Core 3 | . . 4 Treads 9 | . . 12 Leg 2 | . 13 . Wheel 12 | . 14 11 Device 6 | . 6 7 Storage 11 | . 20 9 Protection 3 | . . 4 Energy Gun 1 | . 2 1 Ballistic Gun 18 | . 23 17 Naked Turns . | . . . Heaviest Build 72 | 10 27 72 Greatest Support 40 | 20 24 40 Greatest Overweight (x) 5 | . 1 5 Average Overweight (x) 1 | . . 1 Largest Inventory Capacity 15 | 8 15 15 Average Capacity 13 | 8 10 14 Most Carried 15 | 6 11 15 Average Carried 12 | 6 9 12 Final Capacity 15 | 8 15 15 Final Carried 14 | 6 11 14 Class Distribution -------------------- 94% | Mutant 5% | Scavenger-Mutant Dominant Class ---------------- Mutant | -10/Materials Mutant | -10/Subcaves Resources | -11 -10 -10 ----------- Run | Yrd Mat Sub Matter Collected 928 | 200 141 587 Remotely . | . . . Salvage Created 679 | . 248 431 Parts 51 | . 21 30 Haulers Intercepted 1 | . 1 . Recyclers Shooed . | . . . Parts Field Recycled . | . . . Retrieved Matter . | . . . Parts Self-Destructed 1 | . . 1 Prevented . | . . . Kills | -11 -10 -10 ------- Run | Yrd Mat Sub Combat Hostiles Destroyed 20 | . 8 12 Guns 10 | . 5 5 AOE 10 | . 3 7 Classes Destroyed 5 | . 3 2 Hauler 1 | . 1 . Swarmer 3 | . 3 . Grunt 7 | . 5 2 Sentry 1 | . . 1 Subdweller 9 | . . 9 Best Kill Streak 3 | . 3 2 Combat Bots Only 3 | . 3 2 Max Kills in Single Turn 2 | . 2 2 Gunslinging 1 | . 1 . Exploded 2 | . 2 2 Melee . | . . . Uniques/NPCs Destroyed . | . . . Combat | -11 -10 -10 -------- Run | Yrd Mat Sub Hostile Shots Fired 90 | . 41 49 Missed 26 | . 11 15 Damage Taken 1364 | . 425 939 Core 252 | . 133 119 Absorbed by Shields . | . . . Core Remaining (%) 100 | 100 . . Volleys Fired 88 | . 25 63 Largest 3 | . 2 3 Hottest 90 | . 60 90 Shots Fired 133 | . 45 88 Gun 120 | . 40 80 Cannon . | . . . Launcher 13 | . 5 8 Special . | . . . Kinetic 111 | . 37 74 Thermal 9 | . 3 6 Explosive 13 | . 5 8 Electromagnetic . | . . . Robot Hit Streak 10 | . 7 10 Robot Miss Streak 6 | . 2 6 Penetration Max . | . . . Secondary Targets 1 | . 1 . Max Gunslinging Chain 1 | . 1 . Shots Hit Robots 66 | . 28 38 Core Hits 33 | . 16 17 Critical Kills . | . . . Critical Parts Destroyed . | . . . Critical Strikes 4 | . . 4 Destroy 4 | . . 4 Melee Attacks . | . . . Impact . | . . . Slashing . | . . . Piercing . | . . . Sneak Attacks . | . . . Combat Hostiles . | . . . Follow-up Attacks . | . . . Damage Inflicted 1814 | . 537 1277 Guns 864 | . 315 549 Cannons . | . . . Explosions 950 | . 222 728 Melee . | . . . Ramming . | . . . Kinetic 799 | . 293 506 Thermal 65 | . 22 43 Explosive 950 | . 222 728 Electromagnetic . | . . . Impact . | . . . Slashing . | . . . Piercing . | . . . Highest Corruption . | . . . Average Corruption . | . . . Corruption Purged . | . . . Corruption Blocked . | . . . Overload Shots . | . . . Overflow Damage 8 | . 6 2 Projectiles . | . . . Explosions 8 | . 6 2 Melee . | . . . Knockbacks . | . . . Impact . | . . . Kinetic . | . . . Secondary . | . . . Self-Inflicted Damage 188 | . 95 93 Shots 4 | . 2 2 Rammed . | . . . Targets Rammed . | . . . Kicked . | . . . Crushed . | . . . Highest Temperature 20 | . 20 . Average Temperature 7 | . 7 . Received Heat Transfer 345 | . 138 207 Siege Activations . | . . . Robots Corrupted . | . . . Combat Hostiles . | . . . Parts Fried . | . . . Impact Corruptions . | . . . Robots Melted . | . . . Combat Hostiles . | . . . Parts Melted . | . . . Heat Transferred 100 | . 50 50 Parts Sabotaged . | . . . Parts Stolen . | . . . Parts Stripped . | . . . Power Chain Reactions . | . . . Alert | -11 -10 -10 ------- Run | Yrd Mat Sub Peak Influence 296 | . 296 . Initial . | . . . Average 133 | . 134 . Maximum Alert Level 1 | . 1 . Low Security (%) 73 | 100 73 . Level 1 26 | . 26 . Level 2 . | . . . Level 3 . | . . . Level 4 . | . . . Level 5 . | . . . High Security . | . . . Max Security . | . . . Squads Dispatched 1 | . 1 . Investigation . | . . . Extermination . | . . . Reinforcement 1 | . 1 . Assault . | . . . Garrison . | . . . Intercept . | . . . Searches Triggered . | . . . Construction Impeded . | . . . Haulers Reinforced . | . . . Active Scanning Responses . | . . . Cargo Convoy Interrupts . | . . . Stealth | -11 -10 -10 --------- Run | Yrd Mat Sub Distress Signals . | . . . Communications Jammed . | . . . Distress Signals . | . . . Times Spotted 25 | . 12 13 Peak Tracking Total 4 | . 4 2 Tactical Retreats . | . . . Traps | -11 -10 -10 ------- Run | Yrd Mat Sub Traps Triggered 5 | . 1 4 Indirectly . | . . . Trap Hack Attempts . | . . . Triggered . | . . . Disarmed . | . . . Reprogrammed . | . . . Reused . | . . . Traps Extracted . | . . . Installed . | . . . Triggered . | . . . Most Traps Carried 2 | . . 2 Machines | -11 -10 -10 ---------- Run | Yrd Mat Sub Machines Disabled 2 | . 1 1 Max in Single Turn 1 | . 1 1 Machines Repaired . | . . . Machines Dismantled . | . . . Machines Sabotaged . | . . . Overloaded Fab Kills . | . . . Hacking | -11 -10 -10 --------- Run | Yrd Mat Sub Machines Accessed 3 | . 2 1 Terminals 2 | . 2 . Fabricators . | . . . Repair Stations . | . . . Recycling Units . | . . . Scanalyzers . | . . . Garrison Access . | . . . Total Hacks 5 | . 4 1 Successful 1 | . . 1 Failed 4 | . 4 . Catastrophic 1 | . 1 . Database Lockouts . | . . . Manual 4 | . 4 . Terminals 4 | . 4 . Fabricators . | . . . Repair Stations . | . . . Recycling Units . | . . . Scanalyzers . | . . . Garrison Access . | . . . Terminal Hacks 1 | . . 1 Derelict Proto ID Bank 1 | . . 1 Fabricator Hacks . | . . . Repair Station Hacks . | . . . Recycling Unit Hacks . | . . . Scanalyzer . | . . . Garrison Access Hacks . | . . . Unauthorized Hacks . | . . . Terminals . | . . . Fabricators . | . . . Repair Stations . | . . . Recycling Units . | . . . Scanalyzers . | . . . Garrison Access . | . . . Data Cores Recovered . | . . . Used . | . . . Hacking Detections 2 | . 2 . Full Trace Events . | . . . Feedback Events . | . . . Feedback Blocked . | . . . Robot Schematics Acquired . | . . . Robots Built . | . . . Authchips . | . . . Time . | . . . Total Robot Build Rating . | . . . Part Schematics Acquired . | . . . Parts Built . | . . . Authchips . | . . . Time . | . . . Total Part Build Rating . | . . . Parts Repaired . | . . . Time . | . . . Parts Recycled . | . . . Recycled Matter . | . . . Retrieved Matter . | . . . Retrieved Components . | . . . Parts Scanalyzed . | . . . Part Schematics Acquired . | . . . Parts Damaged . | . . . Bothacking | -11 -10 -10 ------------ Run | Yrd Mat Sub Used RIF Installer . | . . . Robots Hacked . | . . . Non-combat . | . . . Combat . | . . . Robot Hacks Applied . | . . . Relay Couplers Released . | . . . Fabnet Peak Effective % . | . . . Robots Rewired . | . . . Allies Hacked . | . . . Hacks Repelled . | . . . Allies | -11 -10 -10 -------- Run | Yrd Mat Sub Total Allies . | . . . Largest Group . | . . . Highest-Rated Group . | . . . Highest-Rated Ally . | . . . Total Orders . | . . . Ally Attacks . | . . . Total Damage . | . . . Kills . | . . . Allies Corrupted . | . . . Allies Melted . | . . . Intel | -11 -10 -10 ------- Run | Yrd Mat Sub Robot Analysis Total . | . . . Derelict Logs Recovered . | . . . Drone Launches . | . . . Drone Recoveries . | . . . Exploration | -11 -10 -10 ------------- Run | Yrd Mat Sub Turns Passed 1848 | 3 371 1474 Spaces Moved 1173 | 3 208 962 Core . | . . . Treads 192 | . . 192 Legs 81 | 3 78 . Wheels 900 | . 130 770 Hover . | . . . Flight . | . . . Fastest Speed 90 | 120 90 100 Average Speed 125 | 120 116 127 Slowest Speed 240 | 120 190 240 Overloaded Moves . | . . . Propulsion Burnouts . | . . . Robots Hopped . | . . . Cave-ins Triggered . | . . . Exploration Rate (%) 36 | 2 40 68 Regions Visited 2 Branch Regions 1 Pre-discovered Areas . | . . . Known Exits Taken . | . . . Unknown Exits Taken 2 | 1 1 . Scrap Searched 2 | . . 2 Spaces Dug 15 | . 8 7 Terrain Destroyed 102 | . 41 61 Melee . | . . . Projectile . | . . . AOE 102 | . 41 61 Terrain Rammed . | . . . Walls Destroyed . | . . . Machines Disabled . | . . . Actions | -11 -10 -10 --------- Run | Yrd Mat Sub Total 1414 | 2 289 1123 Wait 46 | . 19 27 Move 1171 | 2 207 962 Hop . | . . . Pick Up 39 | . 9 30 Fast Attach 18 | . 10 8 Attach 6 | . 1 5 Detach . | . . . Swap 24 | . 7 17 Drop 22 | . 11 11 Fire 88 | . 25 63 Melee . | . . . Ram . | . . . Kick . | . . . Crush . | . . . Escape Stasis . | . . . Rewire . | . . . Trap . | . . . Miscellaneous . | . . . Route ------- -11/Scrapyard -10/Materials (discovered 2 exits: [*Mat] / *Sub) -10/Subcaves (discovered 2 exits: [*Mat x2]) History --------- Turn | Location | Event 1 | -11/Scrapyard | Discovered new exit (range 1) 4 | -11/Scrapyard | Entered Materials 206 | -10/Materials | Discovered new exit (range 10) 280 | -10/Materials | Core integrity fell below 50% 325 | -10/Materials | Build established: Mutant 351 | -10/Materials | Discovered new exit (range 9) 375 | -10/Materials | Entered Subcaves 431 | -10/Subcaves | Discovered new exit (range 14) 690 | -10/Subcaves | Visited 4L-MR0's lab 710 | -10/Subcaves | Found Tower Shield 765 | -10/Subcaves | Shifting Twisted Machinery released Sub. Power Source 791 | -10/Subcaves | Shifting Twisted Machinery released Sub. Machine Gun 844 | -10/Subcaves | Attached Tower Shield, gained temporary slots: Power, Propulsion x2, Utility x2, Weapon x2 918 | -10/Subcaves | Shifting Twisted Machinery released Sub. Power Source 925 | -10/Subcaves | Shifting Twisted Machinery released Sub. Beam Cannon 1202 | -10/Subcaves | Discovered new exit (range 9) 1732 | -10/Subcaves | Core integrity fell below 20% 1849 | -10/Subcaves | Destroyed by 9G-EPC(R) with Subdweller Machine Gun Last Messages --------------- 01741_ KJ-8IR(R) destroyed. 01744_ Acquired 29 matter. 01746_ Acquired 24 matter. 01754_ Acquired Structural Scanner. 01759_ Acquired Lrg. Storage Unit. 01762_ Acquired Ion Engine. 01766_ Acquired Lgt. Assault Rifle. 01769_ Acquired Lgt. Cannon. 01773_ Acquired Sub. Laser. 01776_ Acquired Arm. Wheel. 01779_ Acquired Sub. Monowheel. 01786_ Acquired Arm. Wheel. 01792_ Acquired Heat Sink. 01795_ Acquired Sub. Beam Cannon. 01804_ Dropped Lgt. Assault Rifle. 01804_ Acquired Battle Rifle. 01809_ Dropped Broken Sub. Machine Gun. 01813_ Acquired Lgt. Assault Rifle. 01842_ 9G-EPC(R): "SUBSUB!" 01847_ Dropped Shrapnel Trap. Map ----- +----------------------------------------------------+ | | | | | | | | | | | | | | | | | ?????????????????????????????????????????????????? | | ?????????????????????????????????????????????????? | | ?????????????????????????????????????????????????? | | ?????????????????????????????????????????????????? | | ?????????????????????????????????????????????????? | | ?????????????????????????????????????????????????? | | ?????????????????????????????????????????????????? | | ?????????????????????????????????????????????????? | | ?????????????????????????????????????????????????? | | ?????????????????????????????????????????????????? | | ?????????????????????????????? "##?????????????? | | ?????????????????????????????? #####?????????????? | | ?????????????????????????????#" ###????????????? | | ????????????????????############ ####????????????? | | ??????????????????#############""" ###?###???????? | | ??????????????????#### "" ## ########??????? | | ?????????????????? " ## ### ###??????? | | ??????????????????????##"@## ###??#### | | ??????????????????????### R #"""" ###??# # | | ??????????????????????######## " ##?## | | ???????????????????????####### " ### #### | | ???????????????????????????###""" ########### | | ???????????????????????????### ### ###### | | ???????????????????????????## ## ### | | ???????????????????????????## ## = | | ???????????????????????????### ## ### | | ???????????????????????????#### [## #### | | ????????????????????????????#### ! #### | | ?????????????????????????????### ## # | | ????????????????????????????### &! ## ## ## | | ???????????????????????????### #######? | | ??????????????????????????### ###???? | | ??????????????????????????## ##???? | | ??????????????????????????## ## ####???? | | ??????????????????????????## ####### #####???? | | ??????????????????????????##################?????? | | ??????????????????????????#########????####??????? | | ?????????????????????????????????????????????????? | | ?????????????????????????????????????????????????? | | ?????????????????????????????????????????????????? | | ?????????????????????????????????????????????????? | | ?????????????????????????????????????????????????? | +----------------------------------------------------+ Best States ------------- Heat Dissipation 35 Energy Generation 15 Energy Capacity 250 Matter Stores 300 Matter Capacity 300 Sight Range 16 Terrain Scan Density 10 Armor Coverage 2000 Evasion (%) 55 Recoil Reduction 2 Item Schematics ----------------- None Robot Schematics ------------------ None Fabricated ------------ Nothing Alien Tech Used ----------------- None Achievements -------------- None Challenges ------------ None Game ------ Seed AerolevMomentumGreatsword Manual? 0 Play Time 00:22:13 Cumulative 212.3 hours Start 2024.07.28 @ 11:39:18 End 2024.07.28 @ 11:59:18 Sessions 1 Manual Loads 0 Difficulty Rogue Special Mode None Game No. 81 Rogue 81 Adventurer 0 Explorer 0 Win Type - Total 5 Types 4/0/0/1/0/0/0/0/0 Lore% 36 Gallery% 66 Achievement% 55 Wizard Run 0 Options --------- Layout 2 ASCII 0 Keyboard 1 Movement Vi Keybinds 0 Fullscreen 2 Font 24/Terminus Map View 50x44 Zoom Use 0% Tactical HUD 1 Map Filters NONE Filters NONE Steam 1 RUN: c0d8ca78-5ee7-46b3-8362-486d075c915b